lending/lending_fUSD_20260310
["ID","MTS","AMOUNT","RATE_DAILY","PERIOD"]
[408149932,1773179445041,-500.0,0.00019777,2]
[408149933,1773179445051,-500.0,0.00019777,2]
[408149934,1773179445061,-500.0,0.00019777,2]
[408149935,1773179445070,-510.25,0.00019777,2]
[408149936,1773179445079,-500.0,0.00019777,2]
[408149937,1773179445089,-500.0,0.00019777,2]
[408149938,1773179445098,-150.0,0.00019778,2]
[408149939,1773179445108,-150.0,0.00019778,2]
[408149940,1773179445118,-150.0,0.00019778,2]
[408149941,1773179445128,-600.0,0.00019778,2]
[408149942,1773179445139,-500.0,0.00019778,2]
[408149943,1773179445149,-500.0,0.00019778,2]
[408149944,1773179445160,-500.0,0.00019778,2]
[408149945,1773179445176,-500.0,0.00019778,2]
[408149946,1773179445195,-505.89870401,0.00019778,2]
[408149947,1773179445214,-150.0,0.00019778,2]
[408149948,1773179445224,-500.0,0.00019778,2]
[408149949,1773179445235,-552.49408871,0.00019778,2]
[408149950,1773179445246,-500.0,0.00019781,7]
[408149951,1773179445258,-1000.0,0.000198,7]
[408149952,1773179445267,-624.2341,0.000198,2]
[408149953,1773179445277,-624.2341,0.000198,2]
[408149954,1773179445288,-200.0,0.000198,2]
[408149955,1773179445298,-200.0,0.00019822,2]
[408149956,1773179445307,-1000.0,0.00019822,2]
[408149957,1773179445317,-200.0,0.00019826,2]
[408149958,1773179445326,-1252.0,0.00019829,2]
[408149959,1773179445337,-200.0,0.00019833,2]
[408149960,1773179445350,-150.0,0.00019833,2]
[408149961,1773179445360,-150.0,0.00019833,2]
[408149962,1773179445369,-500.0,0.00019833,2]
[408149963,1773179445379,-500.0,0.00019833,2]
[408149964,1773179445389,-500.0,0.00019833,2]
[408149965,1773179445399,-500.0,0.00019833,2]
[408149966,1773179445408,-500.0,0.00019833,2]
[408149967,1773179445422,-342.0,0.00019845,2]
[408149968,1773179445432,-200.0,0.00019864,2]
[408149969,1773179445443,-1000.0,0.0001987,2]
[408149970,1773179445454,-150.0,0.00019887,2]
[408149971,1773179445465,-150.0,0.00019887,2]
[408149972,1773179445474,-500.0,0.00019887,2]
[408149973,1773179445484,-500.0,0.00019887,2]
[408149974,1773179445493,-544.737577,0.00019887,2]
[408149975,1773179445502,-500.0,0.00019887,2]
[408149976,1773179445511,-3000.0,0.00019898,2]
[408149977,1773179445521,-4473.8803,0.00019899,2]
[408149978,1773179445531,-500.0,0.00019899,2]
[408149979,1773179445540,-500.0,0.00019899,2]
[408149980,1773179445550,-500.0,0.00019899,2]
[408149982,1773179445559,-500.0,0.00019899,2]
[408149983,1773179445568,-500.0,0.00019899,2]
[408149984,1773179445578,-500.0,0.00019899,2]
[408149985,1773179445589,-500.0,0.00019899,2]
[408149986,1773179445599,-500.0,0.00019899,2]
[408149987,1773179445608,-500.0,0.00019899,2]
[408149988,1773179445617,-500.0,0.00019899,2]
[408149989,1773179445627,-500.0,0.00019899,2]
[408149990,1773179445638,-500.0,0.00019899,2]
[408149991,1773179445648,-500.0,0.00019899,2]
[408149992,1773179445657,-500.0,0.00019899,2]
[408149993,1773179445667,-500.0,0.00019899,2]
[408149994,1773179445677,-500.0,0.00019899,2]
[408149995,1773179445686,-500.0,0.00019899,2]
[408149996,1773179445695,-500.0,0.00019899,2]
[408149997,1773179445705,-302.61,0.00019899,2]
[408149998,1773179445715,-500.0,0.00019899,2]
[408149999,1773179445725,-326.84417563,0.00019899,2]
[408150001,1773179445735,-500.0,0.00019899,2]
[408150003,1773179445745,-500.0,0.00019899,2]
[408150004,1773179445755,-500.0,0.00019899,2]
[408150006,1773179445765,-500.0,0.00019899,2]
[408150007,1773179445775,-500.0,0.00019899,2]
[408150008,1773179445784,-530.0627847,0.00019899,2]
[408150009,1773179445794,-500.0,0.00019899,2]
[408150010,1773179445804,-500.0,0.00019899,2]
[408150011,1773179445814,-500.0,0.00019899,2]
[408150012,1773179445825,-500.0,0.00019899,2]
[408150013,1773179445834,-500.0,0.00019899,2]
[408150014,1773179445844,-396.38337772,0.00019899,2]
[408150015,1773179445854,-500.0,0.00019899,2]
[408150016,1773179445863,-500.0,0.00019899,2]
[408150017,1773179445873,-504.92020981,0.00019899,2]
[408150018,1773179445882,-500.0,0.00019899,2]
[408150019,1773179445892,-500.0,0.00019899,2]
[408150020,1773179445902,-500.0,0.00019899,2]
[408150022,1773179445911,-445.68,0.00019899,2]
[408150024,1773179445921,-500.0,0.00019899,2]
[408150026,1773179445930,-500.0,0.00019899,2]
[408150028,1773179445939,-500.0,0.00019899,2]
[408150029,1773179445948,-500.0,0.00019899,2]
[408150030,1773179445958,-507.21393636,0.00019899,2]
[408150031,1773179445968,-500.0,0.00019899,2]
[408150032,1773179445977,-500.0,0.00019899,2]
[408150033,1773179445987,-500.0,0.00019899,2]
[408150034,1773179445996,-500.0,0.00019899,2]
[408150035,1773179446006,-500.0,0.00019899,2]
[408150036,1773179446016,-500.0,0.00019899,2]
[408150037,1773179446027,-500.0,0.00019899,2]
[408150038,1773179446036,-500.0,0.00019899,2]
[408150039,1773179446046,-418.03869206,0.00019899,2]
[408150040,1773179446056,-510.25,0.00019899,2]
[408150041,1773179446065,-510.25,0.00019899,2]
[408150042,1773179446075,-510.25,0.00019899,2]
[408150043,1773179446084,-510.25,0.00019899,2]
[408150044,1773179446093,-510.25,0.00019899,2]
[408150045,1773179446102,-510.25,0.00019899,2]
[408150046,1773179446112,-510.25,0.00019899,2]
[408150047,1773179446122,-510.25,0.00019899,2]
[408150048,1773179446132,-510.25,0.00019899,2]
[408150049,1773179446141,-510.25,0.00019899,2]
[408150050,1773179446151,-500.0,0.00019899,2]
[408150051,1773179446161,-500.0,0.00019899,2]
[408150052,1773179446170,-500.0,0.00019899,2]
[408150053,1773179446179,-500.0,0.00019899,2]
[408150054,1773179446188,-500.0,0.00019899,2]
[408150055,1773179446198,-500.0,0.00019899,2]
[408150056,1773179446207,-500.0,0.00019899,2]
[408150057,1773179446217,-500.0,0.00019899,2]
[408150058,1773179446226,-500.0,0.00019899,2]
[408150059,1773179446235,-500.0,0.00019899,2]
[408150060,1773179446245,-500.0,0.00019899,2]
[408150061,1773179446254,-500.0,0.00019899,2]
[408150062,1773179446264,-610.75366744,0.000199,3]
[408150063,1773179446274,-196.35757158,0.000199,2]
[408150064,1773179446284,-5800.0,0.000199,2]
[408150065,1773179446294,-200.0,0.000199,2]
[408150066,1773179446305,-541.08770395,0.000199,2]
[408150067,1773179446314,-15898.61407384,0.000199,2]
[408150069,1773179446323,-1441.0,0.000199,7]
[408150071,1773179446333,-161.2390476,0.000199,2]
[408150073,1773179446346,-7342.55712531,0.000199,2]
[408150075,1773179446356,-235.8695406,0.000199,2]
[408150077,1773179446364,-6273.67906402,0.000199,2]
[408150079,1773179446374,-4364.0,0.000199,2]
[408150081,1773179446384,-3694.0,0.000199,2]
[408150083,1773179446393,-510.25,0.00019902,2]
[408150085,1773179446403,-500.0,0.00019902,2]
[408150087,1773179446412,-200.0,0.00019906,2]
[408150088,1773179446423,-200.0,0.00019911,2]
[408150090,1773179446433,-1000.0,0.00019913,2]
[408150091,1773179446442,-682.0,0.00019932,2]
[408150093,1773179446451,-150.0,0.00019932,2]
[408150094,1773179446461,-150.0,0.00019932,2]
[408150095,1773179446469,-250.0,0.00019932,2]
[408150096,1773179446479,-150.0,0.00019942,2]
[408150097,1773179446488,-150.0,0.00019942,2]
[408150098,1773179446497,-500.0,0.00019942,2]
[408150099,1773179446507,-311.946409,0.00019942,2]
[408150100,1773179446517,-500.0,0.00019942,2]
[408150101,1773179446526,-200.0,0.00019945,2]
[408150102,1773179446536,-1095.49569653,0.0001996,5]
[408150103,1773179446546,-554.85,0.00019972,2]
[408150104,1773179446555,-500.0,0.00019972,2]
[408150105,1773179446564,-1042.0,0.00019973,2]
[408150106,1773179446573,-3505.0,0.00019973,2]
[408150107,1773179446583,-1342.0,0.00019973,2]
[408150108,1773179446592,-619.0,0.00019973,2]
[408150109,1773179446601,-271.641,0.00019973,2]
[408150110,1773179446611,-1280.0,0.00019973,2]
[408150111,1773179446716,-922.0,0.00019973,2]
[408150112,1773179446725,-1213.0,0.00019973,2]
[408150113,1773179446735,-150.0,0.00019973,2]
[408150114,1773179446743,-3750.0,0.00019973,2]
[408150115,1773179446753,-2461.0,0.00019973,2]
[408150116,1773179446763,-500.0,0.00019973,2]
[408150117,1773179446772,-500.0,0.00019973,2]
[408150118,1773179446781,-500.0,0.00019973,2]
[408150119,1773179446790,-500.0,0.00019973,2]
[408150120,1773179446800,-500.0,0.00019973,2]
[408150121,1773179446809,-150.0,0.00019973,2]
[408150122,1773179446817,-500.0,0.00019973,2]
[408150123,1773179446827,-500.0,0.00019973,2]
[408150124,1773179446837,-401.25902058,0.00019973,2]
[408150125,1773179446846,-500.0,0.00019973,2]
[408150126,1773179446855,-500.0,0.00019973,2]
[408150127,1773179446864,-500.0,0.00019973,2]
[408150128,1773179446873,-500.0,0.00019973,2]
[408150129,1773179446882,-525.62729725,0.00019973,2]
[408150130,1773179446891,-336.48617471,0.00019973,2]
[408150131,1773179446900,-500.24925891,0.00019973,2]
[408150132,1773179446909,-500.0,0.00019973,2]
[408150133,1773179446918,-500.0,0.00019973,2]
[408150134,1773179446928,-283.50907219,0.00019973,2]
[408150135,1773179446937,-500.0,0.00019973,2]
[408150136,1773179446946,-500.0,0.00019973,2]
[408150137,1773179446956,-500.0,0.00019973,2]
[408150138,1773179446967,-500.0,0.00019973,2]
[408150139,1773179446977,-500.0,0.00019973,2]
[408150140,1773179446985,-500.0,0.00019973,2]
[408150141,1773179446994,-500.0,0.00019973,2]
[408150142,1773179447004,-500.0,0.00019973,2]
[408150143,1773179447012,-500.0,0.00019973,2]
[408150144,1773179447022,-500.0,0.00019973,2]
[408150145,1773179447031,-500.0,0.00019973,2]
[408150146,1773179447040,-500.0,0.00019973,2]
[408150147,1773179447050,-500.0,0.00019973,2]
[408150148,1773179447059,-500.0,0.00019973,2]
[408150149,1773179447067,-500.0,0.00019973,2]
[408150150,1773179447076,-500.0,0.00019973,2]
[408150151,1773179447086,-500.0,0.00019973,2]
[408150152,1773179447096,-500.0,0.00019973,2]
[408150153,1773179447106,-500.0,0.00019973,2]
[408150154,1773179447115,-500.0,0.00019973,2]
[408150155,1773179447126,-500.0,0.00019973,2]
[408150156,1773179447134,-500.0,0.00019973,2]
[408150157,1773179447143,-500.0,0.00019973,2]
[408150158,1773179447152,-596.36617318,0.00019973,2]
[408150159,1773179447161,-500.0,0.00019973,2]
[408150160,1773179447171,-500.0,0.00019973,2]
[408150161,1773179447180,-500.0,0.00019973,2]
[408150162,1773179447189,-500.0,0.00019973,2]
[408150163,1773179447198,-150.0,0.00019973,2]
[408150164,1773179447207,-558.85528432,0.00019973,2]
[408150165,1773179447216,-500.0,0.00019973,2]
[408150166,1773179447225,-500.0,0.00019973,2]
[408150167,1773179447234,-500.0,0.00019973,2]
[408150168,1773179447243,-500.0,0.00019973,2]
[408150169,1773179447252,-510.25,0.00019982,2]
[408150170,1773179447261,-529.61791857,0.00019982,2]
[408150171,1773179447270,-200.0,0.00019983,2]
[408150172,1773179447279,-22101.0244298,0.00019988,2]
[408150173,1773179447288,-4626.2133365,0.00019988,2]
[408150174,1773179447297,-216.911124,0.0001999,2]
[408150175,1773179447307,-10216.7925206,0.00019993,2]
[408150176,1773179447320,-151.0,0.00019996,2]
[408150177,1773179447330,-250.0,0.00019997,2]
[408150178,1773179447339,-250.0,0.00019997,2]
[408150179,1773179447352,-508.22060755,0.00019997,2]
[408150180,1773179447364,-500.0,0.00019997,2]
[408150181,1773179447372,-151.0,0.00019997,2]
[408150182,1773179447383,-151.0,0.00019997,2]
[408150183,1773179447392,-510.25,0.00019997,2]
[408150184,1773179447401,-510.25,0.00019997,2]
[408150185,1773179447411,-554.85,0.00019998,2]
[408150186,1773179447423,-554.85,0.00019998,2]
[408150187,1773179447434,-554.85,0.00019998,2]
[408150188,1773179447443,-554.85,0.00019998,2]
[408150189,1773179447452,-500.0,0.00019998,2]
[408150190,1773179447462,-500.0,0.00019998,2]
[408150191,1773179447471,-471.57449154,0.00019998,2]
[408150192,1773179447480,-3000.0,0.00019998,2]
[408150193,1773179447489,-3000.0,0.00019998,2]
[408150194,1773179447498,-3000.0,0.00019998,2]
[408150195,1773179447507,-3000.0,0.00019998,2]
[408150196,1773179447516,-300.0,0.00019999,2]
[408150197,1773179447524,-324.75878306,0.00019999,2]
[408150198,1773179447533,-300.0,0.00019999,2]
[408150199,1773179447542,-700.9335269,0.00019999,2]
[408150200,1773179447551,-300.0,0.00019999,2]
[408150201,1773179447561,-666.0,0.00019999,2]
[408150202,1773179447570,-5888.7866587,0.00019999,2]
[408150203,1773179447579,-627782.6195896,0.00019999,2]
[408150204,1773179447588,-500.0,0.00019999,2]
[408150205,1773179447597,-500.0,0.00019999,2]
[408150206,1773179447608,-55348.5477824,0.00019999,2]
[408150207,1773179447617,-257.61241438,0.00019999,2]
[408150208,1773179447626,-169789.8079637,0.00019999,2]
[408150209,1773179447636,-640.18899038,0.00019999,5]
[408150210,1773179447645,-20351.5634154,0.00019999,2]
[408150211,1773179447658,-969.828439,0.00019999,2]
[408150212,1773179447678,-59604.194543,0.00019999,2]
[408150213,1773179447698,-510.25,0.00019999,2]
[408150214,1773179447708,-510.25,0.00019999,2]
[408150215,1773179447719,-510.25,0.00019999,2]
[408150216,1773179447732,-510.25,0.00019999,2]
[408150217,1773179447743,-510.25,0.00019999,2]
[408150218,1773179447753,-510.25,0.00019999,2]
[408150219,1773179447765,-510.25,0.00019999,2]
[408150220,1773179447774,-510.25,0.00019999,2]
[408150221,1773179447784,-510.45,0.00019999,2]
[408150222,1773179447795,-554.85,0.00019999,2]
[408150223,1773179447804,-554.85,0.00019999,2]
[408150224,1773179447813,-554.85,0.00019999,2]
[408150225,1773179447822,-554.85,0.00019999,2]
[408150226,1773179447831,-554.85,0.00019999,2]
[408150227,1773179447841,-554.90799988,0.00019999,2]
[408150228,1773179447850,-3000.0,0.00019999,2]
[408150229,1773179447860,-3000.0,0.00019999,2]
[408150230,1773179447869,-2039.62924179,0.00019999,2]
[408150231,1773179447878,-153475.08263316,0.0002,2]
[408150232,1773179447888,-3950.0,0.0002,2]
[408150233,1773179447898,-1300.58499968,0.0002,2]
[408150234,1773179447907,-132699.62033112,0.0002,2]
[408150235,1773179447916,-1049.90423922,0.0002,2]
[408150236,1773179447926,-2877.02375406,0.0002,2]
[408150237,1773179447935,-150.0,0.0002,2]
[408150238,1773179447945,-150.0,0.0002,2]
[408150239,1773179447954,-12985.30027368,0.0002,2]
[408150240,1773179447964,-152.0,0.0002,2]
[408150241,1773179447974,-209.56,0.0002,2]
[408150242,1773179447983,-1736.91,0.0002,7]
[408150243,1773179447992,-3491.0,0.0002,2]
[408150244,1773179448001,-23682.08,0.0002,2]
[408150245,1773179448010,-933.3,0.0002,2]
[408150246,1773179448019,-2290412.29136014,0.0002,2]
[408150247,1773179448809,-601.32027401,0.00014698,2]
[408150248,1773179448823,-500.0,0.00014698,2]
[408150249,1773179448837,-601.32027401,0.00014698,2]
[408150250,1773179448847,-447.46299791,0.00014698,2]
[408150251,1773179448860,-168.42379226,0.00014698,2]
[408150252,1773179448902,-432.89648175,0.00014698,2]
[408150253,1773179448914,-601.32027401,0.00014698,2]
[408150254,1773179448923,-601.32027401,0.00014698,2]
[408150255,1773179448933,-601.32027401,0.00014698,2]
[408150256,1773179448943,-601.32027401,0.00014698,2]
[408150257,1773179448955,-15436.96030408,0.0002,2]
[408150258,1773179449263,-601.32027401,0.00014698,2]
[408150259,1773179449272,-419.32054989,0.00014698,2]
[408150260,1773179449325,-181.99972412,0.00014698,2]
[408150261,1773179449334,-601.32027401,0.00014698,2]
[408150262,1773179449347,-601.32027401,0.00014698,2]
[408150263,1773179449358,-601.32027401,0.00014698,2]
[408150264,1773179449368,-601.32027401,0.00014698,2]
[408150265,1773179449377,-601.32027401,0.00014698,2]
[408150266,1773179449387,-601.32027401,0.00014698,2]
[408150267,1773179449396,-601.32027401,0.00014698,2]
[408150268,1773179449405,-601.32027401,0.00014698,2]
[408150269,1773179449415,-601.32027401,0.00014698,2]
[408150270,1773179449424,-601.32027401,0.00014698,2]
[408150271,1773179449434,-601.32027401,0.00014698,2]
[408150272,1773179449444,-601.32027401,0.00014698,2]
[408150273,1773179449453,-601.32027401,0.00014698,2]
[408150274,1773179449465,-601.32027401,0.00014698,2]
[408150275,1773179449474,-601.32027401,0.00014698,2]
[408150276,1773179449484,-601.32027401,0.00014698,2]
[408150277,1773179449495,-601.32027401,0.00014698,2]
[408150278,1773179449505,-601.32027401,0.00014698,2]
[408150279,1773179449633,-601.32027401,0.00014698,2]
[408150280,1773179449643,-601.32027401,0.00014698,2]
[408150281,1773179449652,-601.32027401,0.00014698,2]
[408150282,1773179449660,-601.32027401,0.00014698,2]
[408150283,1773179449669,-601.32027401,0.00014698,2]
[408150284,1773179449678,-601.32027401,0.00014698,2]
[408150285,1773179449687,-601.32027401,0.00014698,2]
[408150286,1773179449696,-601.32027401,0.00014698,2]
[408150287,1773179449705,-601.32027401,0.00014698,2]
[408150288,1773179449714,-601.32027401,0.00014698,2]
[408150289,1773179449723,-601.32027401,0.00014698,2]
[408150290,1773179449732,-601.32027401,0.00014698,2]
[408150291,1773179449741,-601.32027401,0.00014698,2]
[408150292,1773179449750,-601.32027401,0.00014698,2]
[408150293,1773179449760,-601.32027401,0.00014698,2]
[408150294,1773179449769,-601.32027401,0.00014698,2]
[408150295,1773179449778,-601.32027401,0.00014698,2]
[408150296,1773179449788,-601.32027401,0.00014698,2]
[408150297,1773179449798,-601.32027401,0.00014698,2]
[408150298,1773179449807,-5995.0,0.00019973,2]
[408150299,1773179449815,-141944.00651629,0.0002,2]
[408150300,1773179449831,-601.32027401,0.00014698,2]
[408150301,1773179449840,-6566788.78647,0.0002,2]
[408150302,1773179449851,-4386.02600372,0.0002,2]
[408150303,1773179449930,-561.82447497,0.0001735,2]
[408150304,1773179449940,-5129.34726577,0.0002,2]
[408150305,1773179449957,-4528.27067227,0.0002,2]
[408150306,1773179449968,-989.29856,0.0002,2]
[408150307,1773179449991,-194.33339666,0.00014799,2]
[408150308,1773179450000,-971.52748467,0.0002,2]
[408150309,1773179450012,-736.00102635,0.0002,2]
[408150310,1773179450023,-49825.8624644,0.0002,2]
[408150311,1773179450034,-1544.97190607,0.0002,2]
[408150312,1773179450138,-0.00010683,0.0002,2]
[408150313,1773179450150,-22342.72000001,0.0002,2]
[408150314,1773179539916,500.0,9.158e-05,2]
[408150315,1773179547327,500.0,9.158e-05,2]
[408150316,1773179548236,500.0,9.158e-05,2]
[408150317,1773179548383,500.0,9.158e-05,2]
[408150318,1773179551597,500.0,9.158e-05,2]
[408150319,1773179836569,500.0,9.158e-05,2]
[408150320,1773179836814,500.0,9.158e-05,2]
[408150321,1773179837306,500.0,9.158e-05,2]
[408150322,1773179837515,500.0,9.158e-05,2]
[408150323,1773179837793,500.0,9.158e-05,2]
[408150324,1773179839105,500.0,9.158e-05,2]
[408150325,1773179839195,500.0,9.158e-05,2]
[408150326,1773179839633,500.0,9.158e-05,2]
[408150327,1773179840117,500.0,9.158e-05,2]
[408150328,1773179840616,500.0,9.158e-05,2]
[408150329,1773179841083,500.0,9.158e-05,2]
[408150330,1773179841570,500.0,9.158e-05,2]
[408150331,1773179841609,500.0,9.158e-05,2]
[408150332,1773179842025,500.0,9.158e-05,2]
[408150333,1773179842092,500.0,9.158e-05,2]
[408150334,1773179842236,500.0,9.158e-05,2]
[408150335,1773179842534,500.0,9.158e-05,2]
[408150336,1773179842569,500.0,9.158e-05,2]
[408150337,1773179842725,500.0,9.158e-05,2]
[408150338,1773179842988,520.70010821,9.158e-05,2]
[408150339,1773179843182,500.0,9.158e-05,2]
[408150340,1773179843433,500.0,9.158e-05,2]
[408150341,1773179843669,500.0,9.158e-05,2]
[408150342,1773179844020,500.0,9.158e-05,2]
[408150343,1773179844639,500.0,9.158e-05,2]
[408150344,1773179845270,500.0,9.158e-05,2]
[408150345,1773179846736,500.0,9.158e-05,2]
[408150346,1773179847390,500.0,9.158e-05,2]
[408150347,1773179848301,764.2981901,9.158e-05,2]
[408150348,1773179854309,500.0,9.158e-05,2]
[408150349,1773179854805,500.0,9.158e-05,2]
[408150350,1773179855282,500.0,9.158e-05,2]
[408150351,1773179869156,211.11,0.0001,10]
[408150352,1773179907232,166.66,0.0001311,2]
[408150353,1773179907443,166.66,0.00013386,2]
[408150354,1773179907703,166.66,0.00013662,2]
[408150355,1773179907913,166.66,0.00013938,2]
[408150358,1773180043982,200.0,0.00013754,2]
[408150359,1773180060774,348.17862786,0.00013938,2]
[408150360,1773180060805,181.29179344,0.00013938,2]
[408150361,1773180060842,348.17862786,0.00013938,2]
[408150362,1773180140987,500.0,9.158e-05,2]
[408150363,1773180141495,500.0,9.158e-05,2]
[408150364,1773180144926,500.0,9.158e-05,2]
[408150368,1773180305841,500.0,0.00013508,2]
[408150369,1773180441937,500.0,9.158e-05,2]
[408150370,1773180608722,121021.96,0.00013395,2]
[408150379,1773180632196,-150.0,0.00014205,2]
[408150380,1773180632206,-150.0,0.00014205,2]
[408150381,1773180632215,-267.0,0.00014205,2]
[408150382,1773180632224,-166.66,0.00014214,2]
[408150383,1773180632234,-150.0,0.00014214,2]
[408150384,1773180632243,-600.0,0.00014215,2]
[408150385,1773180632253,-471.0,0.00014215,2]
[408150386,1773180632263,-300.0,0.00014215,2]
[408150387,1773180632272,-300.0,0.00014215,2]
[408150388,1773180632282,-300.0,0.00014215,2]
[408150389,1773180632291,-1200.0,0.00014215,2]
[408150390,1773180632301,-500.0,0.00014215,2]
[408150391,1773180632310,-250.0,0.00014216,2]
[408150392,1773180632321,-5000.0,0.00014216,2]
[408150393,1773180632330,-300.0,0.00014218,2]
[408150394,1773180632340,-648.96564869,0.00014219,2]
[408150395,1773180632349,-5000.0,0.00014229,2]
[408150396,1773180632359,-5000.0,0.00014229,2]
[408150397,1773180632369,-2516.24947627,0.00014229,2]
[408150398,1773180632378,-2218.5857,0.00014231,2]
[408150399,1773180632387,-300.0,0.00014234,2]
[408150400,1773180632397,-150.0,0.0001426,2]
[408150401,1773180632406,-150.0,0.0001428,2]
[408150402,1773180632415,-1000.0,0.0001428,2]
[408150404,1773180632425,-15898.61407391,0.00014281,2]
[408150405,1773180632434,-1142.32,0.0001432,2]
[408150406,1773180632443,-500.0,0.00014326,2]
[408150407,1773180632453,-500.0,0.00014326,2]
[408150408,1773180632462,-150.0,0.00014326,2]
[408150409,1773180632471,-500.0,0.00014326,2]
[408150410,1773180632480,-150.0,0.00014326,2]
[408150411,1773180632489,-150.0,0.00014326,2]
[408150412,1773180632498,-500.0,0.00014326,2]
[408150413,1773180632508,-500.0,0.00014326,2]
[408150414,1773180632518,-1000.0,0.0001433,2]
[408150415,1773180632843,-17930.59,0.00014331,2]
[408150416,1773180632880,-9999.99,0.00014331,2]
[408150417,1773180632890,-1820.25,0.00014331,2]
[408150418,1773180632899,-14673.15,0.00014331,2]
[408150419,1773180632909,-150.99,0.00014331,2]
[408150420,1773180632918,-9999.99,0.00014331,2]
[408150421,1773180632927,-62148.73,0.00014331,2]
[408150422,1773180632936,-6594.12,0.00014331,2]
[408150423,1773180632946,-500.0,0.00014381,2]
[408150424,1773180632955,-500.0,0.00014381,2]
[408150425,1773180632964,-150.0,0.00014381,2]
[408150426,1773180632974,-500.0,0.00014381,2]
[408150427,1773180632983,-150.0,0.00014381,2]
[408150428,1773180632992,-150.0,0.00014381,2]
[408150429,1773180633001,-600.0,0.00014381,2]
[408150430,1773180633011,-500.0,0.00014381,2]
[408150431,1773180633020,-4876.71,0.00014385,2]
[408150432,1773180633029,-313.56,0.00014395,2]
[408150433,1773180633038,-299.99,0.00014395,2]
[408150434,1773180633048,-1956.39,0.00014395,2]
[408150435,1773180633058,-73703.64,0.00014395,2]
[408150436,1773180633067,-3715.38,0.00014395,2]
[408150437,1773180633076,-9999.99,0.00014395,2]
[408150438,1773180633086,-150.99,0.00014395,2]
[408150439,1773180633095,-9999.99,0.00014395,2]
[408150440,1773180633105,-500.0,0.00014395,2]
[408150441,1773180633115,-220.89067282,0.00014424,2]
[408150442,1773180633124,-500.0,0.00014424,2]
[408150443,1773180633133,-153.75048617,0.00014424,2]
[408150444,1773180633142,-500.0,0.00014424,2]
[408150445,1773180633152,-500.0,0.00014424,2]
[408150446,1773180633162,-500.0,0.00014424,2]
[408150447,1773180633171,-150.81923528,0.00014424,2]
[408150448,1773180633180,-150.36304931,0.00014424,2]
[408150449,1773180633189,-500.0,0.00014424,2]
[408150450,1773180633198,-152.81580585,0.00014424,2]
[408150451,1773180633207,-6273.67906406,0.00014429,2]
[408150452,1773180633216,-1310.0,0.00014431,2]
[408150453,1773180633226,-500.0,0.00014436,2]
[408150454,1773180633235,-500.0,0.00014436,2]
[408150455,1773180633244,-150.0,0.00014436,2]
[408150456,1773180633254,-500.0,0.00014436,2]
[408150457,1773180633263,-150.0,0.00014436,2]
[408150458,1773180633273,-500.0,0.00014436,2]
[408150459,1773180633282,-150.0,0.00014436,2]
[408150460,1773180633291,-275.0,0.00014452,2]
[408150461,1773180633300,-1085.67213998,0.0001446,2]
[408150462,1773180633309,-502.0,0.00014478,2]
[408150463,1773180633319,-307.59280888,0.00014478,2]
[408150464,1773180633328,-500.0,0.00014479,2]
[408150465,1773180633337,-500.0,0.00014479,2]